[Event "*** Titled Tuesday Blitz"]
[Site "Chess.com"]
[Date "2021.02.02"]
[Round "8"]
[White "hermionegrangermagic"]
[Black "Walter_White_Poland"]
[Result "0-1"]
[WhiteElo "2627"]
[BlackElo "2344"]
[TimeControl "180+1"]
[EndTime "11:30:07 PST"]
[Termination "Walter_White_Poland won by resignation"]

1. e4 {[%clk 0:03:00.9]} 1... e5 {[%clk 0:02:58.8]} 2. Nf3 {[%clk 0:03:00.6]}
2... Nc6 {[%clk 0:02:58.8]} 3. d4 {[%clk 0:03:01.2]} 3... exd4 {[%clk
0:02:58.5]} 4. Bc4 {[%clk 0:03:01.6]} 4... Nf6 {[%clk 0:02:58.1]} 5. e5 {[%clk
0:03:01.2]} 5... Ne4 {[%clk 0:02:58]} 6. O-O {[%clk 0:02:58.7]} 6... Be7 {[%clk
0:02:54.9]} 7. c3 {[%clk 0:02:44.5]} 7... dxc3 {[%clk 0:02:50.3]} 8. Qd5 {[%clk
0:02:34.5]} 8... O-O {[%clk 0:02:36.7]} 9. Qxe4 {[%clk 0:02:34.2]} 9... cxb2
{[%clk 0:02:36.1]} 10. Bxb2 {[%clk 0:02:33.8]} 10... d6 {[%clk 0:02:31.7]} 11.
Rd1 {[%clk 0:02:29]} 11... Qe8 {[%clk 0:02:11.3]} 12. Nc3 {[%clk 0:02:20.1]}
12... dxe5 {[%clk 0:02:10.6]} 13. Nxe5 {[%clk 0:02:07.8]} 13... Nxe5 {[%clk
0:02:10.3]} 14. Qxe5 {[%clk 0:02:07.6]} 14... Bf6 {[%clk 0:02:05]} 15. Qg3
{[%clk 0:01:55.1]} 15... Bf5 {[%clk 0:01:35.9]} 16. Bd3 {[%clk 0:01:34.1]} 16...
Bxd3 {[%clk 0:01:30.9]} 17. Qxd3 {[%clk 0:01:33.7]} 17... Rd8 {[%clk 0:01:27.5]}
18. Qc2 {[%clk 0:01:33.3]} 18... Qc6 {[%clk 0:01:22.9]} 19. Rac1 {[%clk
0:01:24.5]} 19... Rfe8 {[%clk 0:00:59.6]} 20. h3 {[%clk 0:01:12.6]} 20... a6
{[%clk 0:00:58.7]} 21. Rxd8 {[%clk 0:01:12]} 21... Rxd8 {[%clk 0:00:58.2]} 22.
Ne4 {[%clk 0:01:02.9]} 22... Bxb2 {[%clk 0:00:51]} 23. Qxc6 {[%clk 0:00:50]}
23... bxc6 {[%clk 0:00:50.2]} 24. Rxc6 {[%clk 0:00:50.4]} 24... f5 {[%clk
0:00:38.2]} 25. Nc5 {[%clk 0:00:44.5]} 25... Be5 {[%clk 0:00:31.1]} 26. g3
{[%clk 0:00:44.2]} 26... Rd1+ {[%clk 0:00:30.5]} 27. Kg2 {[%clk 0:00:44.1]}
27... Rc1 {[%clk 0:00:29.5]} 28. Rxa6 {[%clk 0:00:23]} 28... Rxc5 {[%clk
0:00:28.8]} 29. a4 {[%clk 0:00:22.1]} 29... Bc3 {[%clk 0:00:29]} 30. Re6 {[%clk
0:00:21.6]} 30... h5 {[%clk 0:00:28.4]} 31. Kf3 {[%clk 0:00:20.8]} 31... Kf7
{[%clk 0:00:28.4]} 32. Re3 {[%clk 0:00:20.8]} 32... g6 {[%clk 0:00:27.8]} 33.
Rd3 {[%clk 0:00:20.9]} 33... Kf6 {[%clk 0:00:27.7]} 34. g4 {[%clk 0:00:20.5]}
34... hxg4+ {[%clk 0:00:27.1]} 35. hxg4 {[%clk 0:00:21.4]} 35... fxg4+ {[%clk
0:00:24.4]} 36. Kxg4 {[%clk 0:00:21.2]} 36... Be5 {[%clk 0:00:23.2]} 37. Kf3
{[%clk 0:00:21.1]} 37... Rc4 {[%clk 0:00:22.3]} 38. Ra3 {[%clk 0:00:19.5]} 38...
Bd6 {[%clk 0:00:22]} 39. Ra2 {[%clk 0:00:19.4]} 39... Rc3+ {[%clk 0:00:22]} 40.
Ke4 {[%clk 0:00:19]} 40... Ra3 {[%clk 0:00:22]} 41. Rc2 {[%clk 0:00:15.9]} 41...
Rxa4+ {[%clk 0:00:21.3]} 42. Kd5 {[%clk 0:00:16.3]} 42... Rf4 {[%clk 0:00:20.3]}
43. Re2 {[%clk 0:00:15.6]} 43... Kf5 {[%clk 0:00:19.5]} 44. Kc6 {[%clk
0:00:15.4]} 44... g5 {[%clk 0:00:19.3]} 45. Kd7 {[%clk 0:00:15.1]} 45... Re4
{[%clk 0:00:18.2]} 46. Rb2 {[%clk 0:00:15.3]} 46... Kf4 {[%clk 0:00:18.2]} 47.
Kc6 {[%clk 0:00:15.2]} 47... Kf3 {[%clk 0:00:17.8]} 48. Rb5 {[%clk 0:00:14.5]}
48... g4 {[%clk 0:00:17.4]} 49. Rf5+ {[%clk 0:00:14.4]} 49... Rf4 {[%clk
0:00:17]} 50. Rg5 {[%clk 0:00:14.2]} 50... Kxf2 {[%clk 0:00:17]} 0-1

[Event "*** Titled Tuesday Blitz"]
[Site "Chess.com"]
[Date "2021.02.02"]
[Round "8"]
[White "Berardino"]
[Black "Arvids_Andrejevs"]
[Result "1-0"]
[WhiteElo "2571"]
[BlackElo "2401"]
[TimeControl "180+1"]
[EndTime "11:30:08 PST"]
[Termination "Berardino won on time"]

1. e4 {[%clk 0:03:00.9]} 1... e5 {[%clk 0:02:59.8]} 2. Nf3 {[%clk 0:03:00.5]}
2... Nc6 {[%clk 0:03:00.3]} 3. Bc4 {[%clk 0:02:58.5]} 3... Nf6 {[%clk
0:03:00.3]} 4. d3 {[%clk 0:02:56.7]} 4... Be7 {[%clk 0:02:59.4]} 5. Nbd2 {[%clk
0:02:55.5]} 5... O-O {[%clk 0:02:58.9]} 6. O-O {[%clk 0:02:52.4]} 6... h6 {[%clk
0:02:58.5]} 7. h3 {[%clk 0:02:49]} 7... d6 {[%clk 0:02:58]} 8. c3 {[%clk
0:02:47.3]} 8... Kh8 {[%clk 0:02:56.3]} 9. Re1 {[%clk 0:02:45]} 9... Nh7 {[%clk
0:02:51.8]} 10. d4 {[%clk 0:02:43.5]} 10... f5 {[%clk 0:02:48.6]} 11. dxe5
{[%clk 0:02:34.7]} 11... dxe5 {[%clk 0:02:38.1]} 12. exf5 {[%clk 0:02:34.6]}
12... Bxf5 {[%clk 0:02:33.8]} 13. Qe2 {[%clk 0:02:16.4]} 13... Bd6 {[%clk
0:02:23.4]} 14. Ne4 {[%clk 0:02:13.6]} 14... Qe7 {[%clk 0:01:58.5]} 15. Bd2
{[%clk 0:01:44.3]} 15... Rae8 {[%clk 0:01:50]} 16. Rad1 {[%clk 0:01:43.7]} 16...
Nf6 {[%clk 0:01:42.3]} 17. Ng3 {[%clk 0:01:38.3]} 17... Bh7 {[%clk 0:01:32.2]}
18. Nh4 {[%clk 0:00:59.7]} 18... Ne4 {[%clk 0:01:03.5]} 19. Nxe4 {[%clk
0:00:54]} 19... Qxh4 {[%clk 0:01:02.7]} 20. Bd3 {[%clk 0:00:41.8]} 20... Re7
{[%clk 0:00:43.5]} 21. f3 {[%clk 0:00:23.3]} 21... Ref7 {[%clk 0:00:40.3]} 22.
Be3 {[%clk 0:00:20.6]} 22... Qe7 {[%clk 0:00:27.8]} 23. Bc2 {[%clk 0:00:17.1]}
23... Nd8 {[%clk 0:00:26.1]} 24. Bb3 {[%clk 0:00:16.1]} 24... Ne6 {[%clk
0:00:21.3]} 25. Kh1 {[%clk 0:00:13]} 25... Rf5 {[%clk 0:00:19]} 26. Ng3 {[%clk
0:00:12.8]} 26... R5f6 {[%clk 0:00:14.2]} 27. Qb5 {[%clk 0:00:11.4]} 27... b6
{[%clk 0:00:10.6]} 28. Qc4 {[%clk 0:00:11.9]} 28... Nf4 {[%clk 0:00:09.2]} 29.
Bxf4 {[%clk 0:00:11.5]} 29... Rxf4 {[%clk 0:00:10.1]} 30. Qc6 {[%clk 0:00:10.4]}
30... Qg5 {[%clk 0:00:09.7]} 31. Ne4 {[%clk 0:00:10.1]} 31... Bxe4 {[%clk
0:00:08.7]} 32. Rxe4 {[%clk 0:00:11]} 32... Qg3 {[%clk 0:00:05.7]} 33. Re2
{[%clk 0:00:09.5]} 33... Rxf3 {[%clk 0:00:04.9]} 34. gxf3 {[%clk 0:00:09.4]}
34... Rxf3 {[%clk 0:00:04.5]} 35. Rg1 {[%clk 0:00:05.9]} 35... Qxh3+ {[%clk
0:00:03.5]} 36. Rh2 {[%clk 0:00:06.4]} 36... Qf5 {[%clk 0:00:02.3]} 37. Bc2
{[%clk 0:00:05.5]} 37... Qf4 {[%clk 0:00:01.1]} 38. Qe4 {[%clk 0:00:05.3]} 1-0

[Event "*** Titled Tuesday Blitz"]
[Site "Chess.com"]
[Date "2021.02.02"]
[Round "8"]
[White "Matols"]
[Black "Gerodot71"]
[Result "0-1"]
[WhiteElo "2271"]
[BlackElo "2461"]
[TimeControl "180+1"]
[EndTime "11:30:10 PST"]
[Termination "Gerodot71 won on time"]

1. d4 {[%clk 0:03:00.9]} 1... Nf6 {[%clk 0:02:59.9]} 2. c4 {[%clk 0:03:00.7]}
2... e6 {[%clk 0:02:59.6]} 3. g3 {[%clk 0:03:00.4]} 3... d5 {[%clk 0:02:58.2]}
4. Nf3 {[%clk 0:02:59.9]} 4... Be7 {[%clk 0:02:57.7]} 5. Bg2 {[%clk 0:02:59.2]}
5... O-O {[%clk 0:02:58.2]} 6. O-O {[%clk 0:02:59.7]} 6... dxc4 {[%clk
0:02:57.1]} 7. Qc2 {[%clk 0:02:59.7]} 7... a6 {[%clk 0:02:57.2]} 8. a4 {[%clk
0:02:59.7]} 8... Nc6 {[%clk 0:02:56.2]} 9. Qxc4 {[%clk 0:02:54.7]} 9... Qd5
{[%clk 0:02:55.4]} 10. Nbd2 {[%clk 0:02:31.8]} 10... Rd8 {[%clk 0:02:52.8]} 11.
e3 {[%clk 0:02:30.3]} 11... Qh5 {[%clk 0:02:51]} 12. Nb3 {[%clk 0:02:15.3]}
12... e5 {[%clk 0:02:47.7]} 13. Nc5 {[%clk 0:01:49.1]} 13... exd4 {[%clk
0:02:42.2]} 14. exd4 {[%clk 0:01:48.7]} 14... Bxc5 {[%clk 0:02:39.6]} 15. dxc5
{[%clk 0:01:47.7]} 15... Be6 {[%clk 0:02:39]} 16. Qc3 {[%clk 0:01:44.6]} 16...
Ne4 {[%clk 0:02:36.5]} 17. Qe3 {[%clk 0:01:39.6]} 17... Nxc5 {[%clk 0:02:32.8]}
18. Ng5 {[%clk 0:01:33]} 18... Nd4 {[%clk 0:02:18.8]} 19. b4 {[%clk 0:01:19.6]}
19... Ncb3 {[%clk 0:01:42.8]} 20. Nxe6 {[%clk 0:01:07.4]} 20... fxe6 {[%clk
0:01:42]} 21. Ra2 {[%clk 0:00:36.3]} 21... Nxc1 {[%clk 0:01:34.1]} 22. Rxc1
{[%clk 0:00:35.2]} 22... c6 {[%clk 0:01:30.1]} 23. Rd2 {[%clk 0:00:28.2]} 23...
e5 {[%clk 0:01:28.7]} 24. Re1 {[%clk 0:00:27.4]} 24... Rd7 {[%clk 0:01:22.1]}
25. f4 {[%clk 0:00:13.8]} 25... Rad8 {[%clk 0:01:19.5]} 26. fxe5 {[%clk
0:00:12.2]} 26... Qe8 {[%clk 0:01:07.8]} 27. Rf2 {[%clk 0:00:10.9]} 27... Ne6
{[%clk 0:01:02.7]} 28. Bh3 {[%clk 0:00:09.8]} 28... Rd3 {[%clk 0:01:01.9]} 29.
Qe4 {[%clk 0:00:09.3]} 29... Ng5 {[%clk 0:00:48.9]} 30. Qc4+ {[%clk 0:00:07.5]}
30... Kh8 {[%clk 0:00:47.3]} 31. Bf1 {[%clk 0:00:07.4]} 31... Nf3+ {[%clk
0:00:42.7]} 32. Rxf3 {[%clk 0:00:05]} 32... Rxf3 {[%clk 0:00:43.5]} 33. Bg2
{[%clk 0:00:04.7]} 33... Rf8 {[%clk 0:00:41.2]} 34. e6 {[%clk 0:00:04.2]} 34...
Qe7 {[%clk 0:00:38.6]} 35. Bh3 {[%clk 0:00:04.3]} 35... h6 {[%clk 0:00:33.2]}
36. Qe4 {[%clk 0:00:03.6]} 36... Rd2 {[%clk 0:00:29.3]} 37. Bf1 {[%clk
0:00:03.2]} 37... Rff2 {[%clk 0:00:25.8]} 38. Qg6 {[%clk 0:00:02.4]} 38... Rf6
{[%clk 0:00:19.1]} 39. Qe4 {[%clk 0:00:01.5]} 39... Rd6 {[%clk 0:00:17.3]} 0-1

[Event "*** Titled Tuesday Blitz"]
[Site "Chess.com"]
[Date "2021.02.02"]
[Round "8"]
[White "dretch"]
[Black "Genghis_K"]
[Result "1-0"]
[WhiteElo "2858"]
[BlackElo "2924"]
[TimeControl "180+1"]
[EndTime "11:30:11 PST"]
[Termination "dretch won by resignation"]

1. d4 {[%clk 0:03:00.9]} 1... Nf6 {[%clk 0:02:38.7]} 2. c4 {[%clk 0:02:56.5]}
2... g6 {[%clk 0:02:38.7]} 3. Nc3 {[%clk 0:02:56.9]} 3... Bg7 {[%clk 0:02:39.4]}
4. e4 {[%clk 0:02:57.1]} 4... d6 {[%clk 0:02:40]} 5. Nf3 {[%clk 0:02:57.6]} 5...
O-O {[%clk 0:02:40.7]} 6. h3 {[%clk 0:02:55.9]} 6... e5 {[%clk 0:02:39.7]} 7.
dxe5 {[%clk 0:02:51.7]} 7... dxe5 {[%clk 0:02:39.5]} 8. Qxd8 {[%clk 0:02:52.6]}
8... Rxd8 {[%clk 0:02:39.7]} 9. Bg5 {[%clk 0:02:53.5]} 9... Re8 {[%clk
0:02:39.4]} 10. Nd5 {[%clk 0:02:53.2]} 10... Nxd5 {[%clk 0:02:32.6]} 11. cxd5
{[%clk 0:02:54.1]} 11... c6 {[%clk 0:02:28.8]} 12. Bc4 {[%clk 0:02:53.9]} 12...
cxd5 {[%clk 0:02:28.5]} 13. Bxd5 {[%clk 0:02:54.8]} 13... Nd7 {[%clk 0:02:29.1]}
14. Nd2 {[%clk 0:02:54.5]} 14... Nc5 {[%clk 0:02:21.9]} 15. Nc4 {[%clk
0:02:54.1]} 15... Be6 {[%clk 0:02:03.4]} 16. Nd6 {[%clk 0:02:51.7]} 16... Reb8
{[%clk 0:01:52.2]} 17. O-O-O {[%clk 0:02:51]} 17... Bxd5 {[%clk 0:01:47.1]} 18.
Rxd5 {[%clk 0:02:50.1]} 18... Ne6 {[%clk 0:01:46]} 19. Be3 {[%clk 0:02:40]}
19... Nf4 {[%clk 0:01:43.8]} 20. Bxf4 {[%clk 0:02:37.8]} 20... exf4 {[%clk
0:01:44.1]} 21. Kb1 {[%clk 0:02:27.3]} 21... b6 {[%clk 0:01:37.4]} 22. Rc1
{[%clk 0:02:26.3]} 22... Rd8 {[%clk 0:01:28.7]} 23. Nb7 {[%clk 0:01:54]} 23...
Re8 {[%clk 0:01:25.1]} 24. Nd6 {[%clk 0:01:42.9]} 24... Re7 {[%clk 0:01:20.5]}
25. a4 {[%clk 0:01:32]} 25... Bf8 {[%clk 0:01:16.1]} 26. f3 {[%clk 0:01:24.5]}
26... Rd8 {[%clk 0:01:07.9]} 27. Nc8 {[%clk 0:01:03.3]} 27... Red7 {[%clk
0:01:00]} 28. Nxa7 {[%clk 0:01:02.4]} 28... Rxd5 {[%clk 0:00:58.1]} 29. exd5
{[%clk 0:01:03.3]} 29... Rxd5 {[%clk 0:00:58.5]} 30. Nc6 {[%clk 0:01:01.8]}
30... Kg7 {[%clk 0:00:53.1]} 31. b4 {[%clk 0:00:53.2]} 31... Kf6 {[%clk
0:00:47.1]} 32. Kc2 {[%clk 0:00:47.8]} 32... Kg5 {[%clk 0:00:44.3]} 33. Rd1
{[%clk 0:00:40.2]} 33... Rf5 {[%clk 0:00:39.9]} 34. Rd8 {[%clk 0:00:38.1]} 34...
Bg7 {[%clk 0:00:36]} 35. Rb8 {[%clk 0:00:27]} 35... Kh4 {[%clk 0:00:28]} 36.
Rxb6 {[%clk 0:00:25.6]} 36... Kg3 {[%clk 0:00:28.3]} 37. a5 {[%clk 0:00:25.8]}
37... Rd5 {[%clk 0:00:25.1]} 38. a6 {[%clk 0:00:23.7]} 38... Rd7 {[%clk
0:00:21.5]} 39. a7 {[%clk 0:00:17.7]} 39... Rxa7 {[%clk 0:00:17.1]} 40. Nxa7
{[%clk 0:00:18.6]} 40... Bd4 {[%clk 0:00:17.7]} 41. Rb7 {[%clk 0:00:18.5]} 41...
Kxg2 {[%clk 0:00:18.3]} 42. Nc6 {[%clk 0:00:18.8]} 42... Be3 {[%clk 0:00:17.1]}
43. Rxf7 {[%clk 0:00:18.2]} 43... h6 {[%clk 0:00:12]} 44. Ne5 {[%clk 0:00:16.7]}
44... g5 {[%clk 0:00:11.4]} 45. Kd3 {[%clk 0:00:15.3]} 45... Kxh3 {[%clk
0:00:11.6]} 46. Rh7 {[%clk 0:00:15.7]} 46... Kg3 {[%clk 0:00:07.2]} 47. Ke4
{[%clk 0:00:15.2]} 47... h5 {[%clk 0:00:07]} 48. Rxh5 {[%clk 0:00:15.1]} 1-0

[Event "*** Titled Tuesday Blitz"]
[Site "Chess.com"]
[Date "2021.02.02"]
[Round "8"]
[White "jorquerino"]
[Black "CzechmVIII"]
[Result "0-1"]
[WhiteElo "2271"]
[BlackElo "2275"]
[TimeControl "180+1"]
[EndTime "11:30:14 PST"]
[Termination "CzechmVIII won by resignation"]

1. e4 {[%clk 0:03:00.9]} 1... c5 {[%clk 0:02:59.8]} 2. Nc3 {[%clk 0:03:00.6]}
2... Nc6 {[%clk 0:02:59.4]} 3. g3 {[%clk 0:03:01.1]} 3... g6 {[%clk 0:02:59.6]}
4. Bg2 {[%clk 0:03:01.7]} 4... Bg7 {[%clk 0:03:00.3]} 5. d3 {[%clk 0:03:02.2]}
5... d6 {[%clk 0:03:00.6]} 6. Be3 {[%clk 0:03:02.8]} 6... Nh6 {[%clk 0:03:00.7]}
7. h3 {[%clk 0:03:01.6]} 7... f5 {[%clk 0:03:00.8]} 8. Qd2 {[%clk 0:03:00.7]}
8... Nf7 {[%clk 0:03:00.7]} 9. f4 {[%clk 0:03:01.3]} 9... Rb8 {[%clk 0:03:00.1]}
10. a4 {[%clk 0:02:55.1]} 10... a6 {[%clk 0:02:59.5]} 11. Nf3 {[%clk 0:02:54.6]}
11... Nd4 {[%clk 0:02:58.8]} 12. O-O {[%clk 0:02:52.7]} 12... O-O {[%clk
0:02:58]} 13. Qf2 {[%clk 0:02:52.5]} 13... Nxf3+ {[%clk 0:02:46.5]} 14. Qxf3
{[%clk 0:02:47.3]} 14... b5 {[%clk 0:02:36.3]} 15. axb5 {[%clk 0:02:48.2]} 15...
axb5 {[%clk 0:02:36.4]} 16. Qe2 {[%clk 0:02:31.7]} 16... b4 {[%clk 0:02:29.9]}
17. Nd1 {[%clk 0:02:32.1]} 17... fxe4 {[%clk 0:02:22.7]} 18. dxe4 {[%clk
0:02:33]} 18... Bd7 {[%clk 0:01:33.4]} 19. Qd2 {[%clk 0:02:24.7]} 19... Bb5
{[%clk 0:01:29]} 20. Re1 {[%clk 0:02:18.4]} 20... Qc7 {[%clk 0:01:16.4]} 21. Rb1
{[%clk 0:02:04]} 21... Rbd8 {[%clk 0:00:59.2]} 22. Nf2 {[%clk 0:01:47.4]} 22...
Kh8 {[%clk 0:00:48.3]} 23. h4 {[%clk 0:01:39.4]} 23... e5 {[%clk 0:00:43.9]} 24.
f5 {[%clk 0:01:33.5]} 24... gxf5 {[%clk 0:00:36.6]} 25. exf5 {[%clk 0:01:34.4]}
25... d5 {[%clk 0:00:36.2]} 26. Ng4 {[%clk 0:01:27.4]} 26... d4 {[%clk
0:00:26.5]} 27. f6 {[%clk 0:01:22.2]} 27... dxe3 {[%clk 0:00:20.6]} 28. fxg7+
{[%clk 0:01:21.5]} 28... Kxg7 {[%clk 0:00:21]} 29. Qxe3 {[%clk 0:01:19.3]} 29...
Rd4 {[%clk 0:00:18.8]} 30. Nxe5 {[%clk 0:00:57.6]} 30... Re8 {[%clk 0:00:12.4]}
31. c3 {[%clk 0:00:32.2]} 31... Rxe5 {[%clk 0:00:12.1]} 32. Qf2 {[%clk
0:00:32.3]} 32... Rxe1+ {[%clk 0:00:11]} 33. Rxe1 {[%clk 0:00:33.2]} 33... Rd7
{[%clk 0:00:09.2]} 34. h5 {[%clk 0:00:26.2]} 34... Re7 {[%clk 0:00:09.3]} 35.
Rxe7 {[%clk 0:00:20.6]} 35... Qxe7 {[%clk 0:00:09.1]} 36. cxb4 {[%clk
0:00:18.3]} 36... cxb4 {[%clk 0:00:08.7]} 37. Qf4 {[%clk 0:00:19]} 37... Be8
{[%clk 0:00:05.2]} 38. Be4 {[%clk 0:00:15.7]} 38... Kh8 {[%clk 0:00:04.9]} 39.
Qf5 {[%clk 0:00:14.1]} 39... Ng5 {[%clk 0:00:05]} 40. Bd3 {[%clk 0:00:13.2]}
40... h6 {[%clk 0:00:03.5]} 41. g4 {[%clk 0:00:11.9]} 41... Qf7 {[%clk
0:00:03.6]} 42. Qe5+ {[%clk 0:00:11.5]} 42... Kg8 {[%clk 0:00:02.9]} 43. b3
{[%clk 0:00:11.1]} 43... Nf3+ {[%clk 0:00:02.7]} 44. Kg2 {[%clk 0:00:09.8]}
44... Nxe5 {[%clk 0:00:03.6]} 0-1

[Event "*** Titled Tuesday Blitz"]
[Site "Chess.com"]
[Date "2021.02.02"]
[Round "8"]
[White "FlySooHigh"]
[Black "Blitzstream"]
[Result "0-1"]
[WhiteElo "2605"]
[BlackElo "2762"]
[TimeControl "180+1"]
[EndTime "11:30:16 PST"]
[Termination "Blitzstream won by resignation"]

1. e4 {[%clk 0:03:00.9]} 1... d5 {[%clk 0:03:00.3]} 2. exd5 {[%clk 0:03:00.2]}
2... Qxd5 {[%clk 0:03:01.2]} 3. Nc3 {[%clk 0:02:59.8]} 3... Qa5 {[%clk
0:03:01.2]} 4. d4 {[%clk 0:02:59.3]} 4... Nf6 {[%clk 0:03:01.7]} 5. Nf3 {[%clk
0:02:59.6]} 5... c6 {[%clk 0:03:01.7]} 6. Ne5 {[%clk 0:02:59.2]} 6... Be6 {[%clk
0:03:01.6]} 7. Be2 {[%clk 0:02:55.4]} 7... Nbd7 {[%clk 0:03:01.4]} 8. Bf4 {[%clk
0:02:52.4]} 8... Nxe5 {[%clk 0:03:00.7]} 9. Bxe5 {[%clk 0:02:49.3]} 9... Ne4
{[%clk 0:02:31.6]} 10. O-O {[%clk 0:02:44.2]} 10... Nxc3 {[%clk 0:02:26.6]} 11.
bxc3 {[%clk 0:02:45.1]} 11... f6 {[%clk 0:02:18.9]} 12. Bg3 {[%clk 0:02:37.8]}
12... Qxc3 {[%clk 0:02:18.7]} 13. Rb1 {[%clk 0:02:25.3]} 13... b5 {[%clk
0:02:04]} 14. a4 {[%clk 0:02:10.8]} 14... a6 {[%clk 0:01:57]} 15. d5 {[%clk
0:01:48.6]} 15... Bxd5 {[%clk 0:01:31.3]} 16. axb5 {[%clk 0:01:46.9]} 16... axb5
{[%clk 0:01:32.2]} 17. Rxb5 {[%clk 0:01:08.1]} 17... e6 {[%clk 0:01:19.1]} 18.
Rb7 {[%clk 0:01:01.4]} 18... Be7 {[%clk 0:00:42.5]} 19. Bd3 {[%clk 0:00:49.1]}
19... g6 {[%clk 0:00:26.5]} 20. Qg4 {[%clk 0:00:41]} 20... f5 {[%clk 0:00:20.3]}
21. Qf4 {[%clk 0:00:40.5]} 21... Kf7 {[%clk 0:00:12]} 22. Rxe7+ {[%clk
0:00:25.2]} 22... Kxe7 {[%clk 0:00:12.6]} 23. Qc7+ {[%clk 0:00:25.6]} 23... Ke8
{[%clk 0:00:12.4]} 24. Be5 {[%clk 0:00:24.5]} 24... Qb4 {[%clk 0:00:09.9]} 25.
Bxh8 {[%clk 0:00:24.3]} 25... Qg4 {[%clk 0:00:10.1]} 26. f3 {[%clk 0:00:22.6]}
26... Qg5 {[%clk 0:00:10.4]} 27. Qxh7 {[%clk 0:00:21.4]} 27... Ra2 {[%clk
0:00:09.2]} 28. Be5 {[%clk 0:00:19.2]} 28... Qe3+ {[%clk 0:00:08.8]} 29. Kh1
{[%clk 0:00:17.1]} 29... Qxe5 {[%clk 0:00:09.5]} 30. Qxg6+ {[%clk 0:00:17.7]}
30... Kd7 {[%clk 0:00:09.9]} 31. Qg3 {[%clk 0:00:15.9]} 31... Qc3 {[%clk
0:00:09.4]} 32. Re1 {[%clk 0:00:11.2]} 32... Ra1 {[%clk 0:00:08]} 33. Rg1 {[%clk
0:00:10.1]} 33... Qd4 {[%clk 0:00:07.5]} 34. Qe1 {[%clk 0:00:09.2]} 34... Rxe1
{[%clk 0:00:06.8]} 35. Rxe1 {[%clk 0:00:10.1]} 35... Qf2 {[%clk 0:00:07.3]} 36.
Rf1 {[%clk 0:00:09.9]} 36... Qd2 {[%clk 0:00:07.1]} 37. Rb1 {[%clk 0:00:09.5]}
37... c5 {[%clk 0:00:07.1]} 38. h3 {[%clk 0:00:08]} 38... c4 {[%clk 0:00:07.6]}
39. Bf1 {[%clk 0:00:08.7]} 39... Qxc2 {[%clk 0:00:08.1]} 40. Re1 {[%clk
0:00:08.7]} 40... Qf2 {[%clk 0:00:08.1]} 41. Ra1 {[%clk 0:00:08.7]} 41... c3
{[%clk 0:00:08.3]} 42. Bb5+ {[%clk 0:00:06.5]} 42... Kc7 {[%clk 0:00:08.1]} 43.
Bd3 {[%clk 0:00:06.6]} 43... Bxf3 {[%clk 0:00:06.9]} 0-1

[Event "*** Titled Tuesday Blitz"]
[Site "Chess.com"]
[Date "2021.02.02"]
[Round "8"]
[White "pheonixking2000"]
[Black "rasmussvane"]
[Result "0-1"]
[WhiteElo "2732"]
[BlackElo "2881"]
[TimeControl "180+1"]
[EndTime "11:30:18 PST"]
[Termination "rasmussvane won on time"]

1. c4 {[%clk 0:02:55.6]} 1... e6 {[%clk 0:02:59.7]} 2. Nc3 {[%clk 0:02:53.2]}
2... d5 {[%clk 0:03:00.6]} 3. d4 {[%clk 0:02:53.2]} 3... a6 {[%clk 0:03:00.8]}
4. cxd5 {[%clk 0:02:51.9]} 4... exd5 {[%clk 0:03:01.7]} 5. Qb3 {[%clk
0:02:52.4]} 5... Nf6 {[%clk 0:03:01.9]} 6. Bg5 {[%clk 0:02:51.2]} 6... c5 {[%clk
0:03:02.2]} 7. Bxf6 {[%clk 0:02:41.4]} 7... gxf6 {[%clk 0:03:03.1]} 8. dxc5
{[%clk 0:02:36.6]} 8... d4 {[%clk 0:03:00.9]} 9. Rd1 {[%clk 0:02:20.8]} 9...
Bxc5 {[%clk 0:02:20.9]} 10. e3 {[%clk 0:02:17.9]} 10... O-O {[%clk 0:02:00.2]}
11. exd4 {[%clk 0:02:10.7]} 11... Bxd4 {[%clk 0:01:48.9]} 12. Nf3 {[%clk
0:02:10.4]} 12... Nc6 {[%clk 0:01:44.3]} 13. Be2 {[%clk 0:02:02.4]} 13... Bxc3+
{[%clk 0:01:35.8]} 14. Qxc3 {[%clk 0:02:01.1]} 14... Qa5 {[%clk 0:01:36.1]} 15.
Qxa5 {[%clk 0:01:43.9]} 15... Nxa5 {[%clk 0:01:37]} 16. Nd4 {[%clk 0:01:40.6]}
16... Be6 {[%clk 0:01:17.7]} 17. Nxe6 {[%clk 0:01:39.4]} 17... fxe6 {[%clk
0:01:18.6]} 18. Bf3 {[%clk 0:01:40.3]} 18... Rac8 {[%clk 0:01:15.6]} 19. O-O
{[%clk 0:01:36.1]} 19... Rc2 {[%clk 0:01:15.7]} 20. b4 {[%clk 0:01:29.1]} 20...
Nc6 {[%clk 0:01:15]} 21. a3 {[%clk 0:01:26.4]} 21... Rc3 {[%clk 0:01:10.6]} 22.
Rfe1 {[%clk 0:01:13.8]} 22... Rd8 {[%clk 0:00:41.6]} 23. Rxd8+ {[%clk
0:00:18.3]} 23... Nxd8 {[%clk 0:00:42.5]} 24. a4 {[%clk 0:00:17.3]} 24... Kf7
{[%clk 0:00:40.1]} 25. h3 {[%clk 0:00:13.7]} 25... Rc4 {[%clk 0:00:39.2]} 26.
Re4 {[%clk 0:00:13]} 26... Rxe4 {[%clk 0:00:28.1]} 27. Bxe4 {[%clk 0:00:13.9]}
27... f5 {[%clk 0:00:29]} 28. Bf3 {[%clk 0:00:13.7]} 28... Kf6 {[%clk
0:00:29.6]} 29. Kf1 {[%clk 0:00:10.7]} 29... Ke5 {[%clk 0:00:30]} 30. Ke2 {[%clk
0:00:08.9]} 30... Kd4 {[%clk 0:00:30.4]} 31. g3 {[%clk 0:00:03.4]} 31... e5
{[%clk 0:00:23.4]} 32. Bg2 {[%clk 0:00:02.9]} 32... b6 {[%clk 0:00:18.7]} 33. f4
{[%clk 0:00:02.9]} 33... exf4 {[%clk 0:00:15.3]} 34. gxf4 {[%clk 0:00:03.8]}
34... Ne6 {[%clk 0:00:15.9]} 35. Kf3 {[%clk 0:00:02.6]} 35... Kc3 {[%clk
0:00:10.8]} 36. Bf1 {[%clk 0:00:02.5]} 36... Kxb4 {[%clk 0:00:05.5]} 37. Bxa6
{[%clk 0:00:03]} 37... Kxa4 {[%clk 0:00:06.2]} 38. Bc8 {[%clk 0:00:03.7]} 38...
Ng7 {[%clk 0:00:06.7]} 39. Kg3 {[%clk 0:00:02.7]} 39... b5 {[%clk 0:00:06.1]}
40. Kh4 {[%clk 0:00:02.4]} 40... h6 {[%clk 0:00:06.7]} 41. Kg3 {[%clk
0:00:01.4]} 41... b4 {[%clk 0:00:07.1]} 0-1